[Event "49th Rilton Cup 2019-20"]
[Site "Stockholm"]
[Date "2019.12.27"]
[Round "1.22"]
[White "Chan, Kim Yew"]
[Black "Seo, Jung Min"]
[Result "1/2-1/2"]
[ECO "E63"]
[WhiteElo "2245"]
[BlackElo "2444"]
[Annotator "NA"]
[PlyCount "52"]
[EventDate "2019.12.27"]
[EventType "swiss"]
[EventCountry "SWE"]
[SourceTitle "playchess.com"]
[Source "ChessBase"]
[SourceQuality "1"]
[TimeControl "30/5400+30:1800+30"]

1. Nf3 {[%emt 0:00:00]} Nf6 {[%emt 0:00:00]} 2. g3 {[%emt 0:00:00]} g6 {[%emt 0:01:02]} 3. Bg2 {[%emt 0:00:00]} Bg7 {[%emt 0:00:03]} 4. O-O {[%emt 0:00:11]} O-O {[%emt 0:00:08]} 5. c4 {[%emt 0:00:04]} d6 {[%emt 0:00:28]} 6. d4 {[%emt 0:00:06]} Nc6 {[%emt 0:00:05]} 7. Nc3 {[%emt 0:00:04]} a6 {[%emt 0:00:05]} 8. d5 {[%emt 0:00:50]} Na5 {[%emt 0:00:08]} 9. b3 {[%emt 0:00:11]} c5 {[%emt 0:00:28]} 10. dxc6 {[%emt 0:00:12]} Nxc6 {[%emt 0:02:05]} 11. Bb2 {[%emt 0:00:17]} Rb8 {[%emt 0:01:01]} 12. Qc1 {[%emt 0:04:37]} Qa5 {[%emt 0:03:59]} 13. Rd1 {[%emt 0:02:14]} b5 {[%emt 0:05:36]} 14. Nd5 {[%emt 0:07:06]} Nxd5 {[%emt 0:01:18]} 15. cxd5 {[%emt 0:06:47]} Bxb2 {[%emt 0:03:49]} 16. Qxb2 {[%emt 0:01:42]} Na7 {[%emt 0:00:09]} 17. Qd4 {[%emt 0:18:56]} Rb7 {[%emt 0:01:59]} 18. b4 {[%emt 0:00:40]} Qd8 {[%emt 0:02:07]} 19. Rac1 {[%emt 0:03:27]} Bd7 {[%emt 0:00:33]} 20. Qe3 {[%emt 0:05:49]} Kg7 {[%emt 0:01:37]} 21. Qc3+ {[%emt 0:03:58]} Kg8 {[%emt 0:00:10]} 22. Qe3 {[%emt 0:01:52]} Kg7 {[%emt 0:00:04]} 23. Qc3+ {[%emt 0:14:21]} Kg8 {[%emt 0:00:04]} 24. Qd2 {[%emt 0:01:42]} Kg7 {[%emt 0:01:40]} 25. Qc3+ {[%emt 0:02:24]} Kg8 {[%emt 0:00:03]} 26. Qe3 {[%emt 0:00:26]} Kg7 {[%emt 0:00:14]} 1/2-1/2

[Event "49th Rilton Cup 2019-20"]
[Site "Stockholm"]
[Date "2019.12.27"]
[Round "1.24"]
[White "Dev, Shah"]
[Black "Oratovsky, Michael"]
[Result "1/2-1/2"]
[ECO "A41"]
[WhiteElo "2242"]
[BlackElo "2423"]
[Annotator "NA"]
[PlyCount "61"]
[EventDate "2019.12.27"]
[EventType "swiss"]
[EventCountry "SWE"]
[SourceTitle "playchess.com"]
[Source "ChessBase"]
[SourceQuality "1"]
[TimeControl "30/5400+30:1800+30"]

1. d4 {[%emt 0:00:48]} d6 {[%emt 0:00:00]} 2. c4 {[%emt 0:00:07]} e5 {[%emt 0:00:00]} 3. Nc3 {[%emt 0:00:11]} exd4 {[%emt 0:00:00]} 4. Qxd4 {[%emt 0:00:08]} Nc6 {[%emt 0:00:35]} 5. Qd2 {[%emt 0:00:08]} Nf6 {[%emt 0:00:11]} 6. b3 {[%emt 0:00:23]} a5 {[%emt 0:00:08]} 7. Bb2 {[%emt 0:00:11]} a4 {[%emt 0:00:11]} 8. Rd1 {[%emt 0:00:06]} axb3 {[%emt 0:01:03]} 9. axb3 {[%emt 0:00:09]} g6 {[%emt 0:02:06]} 10. g3 {[%emt 0:09:45]} Bg7 {[%emt 0:04:10]} 11. Bg2 {[%emt 0:00:12]} O-O {[%emt 0:01:01]} 12. Nf3 {[%emt 0:00:29]} Nd7 {[%emt 0:08:40]} 13. Na4 {[%emt 0:04:40]} Nde5 {[%emt 0:25:19]} 14. Nxe5 {[%emt 0:03:21]} Nxe5 {[%emt 0:01:18]} 15. O-O {[%emt 0:00:15]} Nxc4 {[%emt 0:35:00]} 16. bxc4 {[%emt 0:00:11]} Rxa4 {[%emt 0:00:04]} 17. Bxg7 {[%emt 0:00:38]} Kxg7 {[%emt 0:00:05]} 18. c5 {[%emt 0:00:13]} Ra6 {[%emt 0:06:48]} 19. Bxb7 {[%emt 0:01:48]} Bxb7 {[%emt 0:00:23]} 20. Qb2+ {[%emt 0:00:01]} Qf6 {[%emt 0:00:30]} 21. Qxb7 {[%emt 0:00:11]} dxc5 {[%emt 0:00:17]} 22. Rc1 {[%emt 0:05:38]} Ra2 {[%emt 0:05:59]} 23. Qxc7 {[%emt 0:00:46]} Rxe2 {[%emt 0:00:18]} 24. Qxc5 {[%emt 0:00:07]} Rfe8 {[%emt 0:01:04]} 25. Qc3 {[%emt 0:01:29]} R8e6 {[%emt 0:03:46]} 26. Qxf6+ {[%emt 0:00:31]} Rxf6 {[%emt 0:00:10]} 27. Kg2 {[%emt 0:00:53]} h5 {[%emt 0:00:17]} 28. h4 {[%emt 0:00:19]} Rf5 {[%emt 0:00:16]} 29. Rc3 {[%emt 0:00:35]} Rf6 {[%emt 0:00:05]} 30. Rf3 {[%emt 0:00:22]} Rxf3 {[%emt 0:00:07]} 31. Kxf3 {[%emt 0:30:13]} 1/2-1/2

[Event "49th Rilton Cup 2019-20"]
[Site "Stockholm"]
[Date "2019.12.28"]
[Round "2.1"]
[White "Haug, Johannes"]
[Black "Kollars, Dmitrij"]
[Result "1/2-1/2"]
[ECO "D74"]
[WhiteElo "2407"]
[BlackElo "2584"]
[Annotator "ChessBase"]
[PlyCount "71"]
[EventDate "2019.12.27"]
[EventType "swiss"]
[EventCountry "SWE"]
[SourceTitle "playchess.com"]
[Source "ChessBase"]
[SourceQuality "1"]
[TimeControl "40/5400+30:1800+30"]

1. d4 {[%emt 0:00:00]} Nf6 {[%emt 0:00:52]} 2. c4 {[%emt 0:00:00]} g6 {[%emt 0:00:29]} 3. Nf3 {[%emt 0:00:45]} Bg7 {[%emt 0:00:05]} 4. g3 {[%emt 0:00:14]} O-O {[%emt 0:00:12]} 5. Bg2 {[%emt 0:00:33]} d5 {[%emt 0:00:45]} 6. cxd5 {[%emt 0:00:28]} Nxd5 {[%emt 0:00:05]} 7. O-O {[%emt 0:00:45]} Nc6 {[%emt 0:00:20]} 8. e4 {[%emt 0:00:55]} Nb6 {[%emt 0:01:32]} 9. d5 {[%emt 0:02:10]} Na5 {[%emt 0:00:07]} 10. Nc3 {[%emt 0:01:27]} c6 {[%emt 0:00:10]} 11. Bf4 {[%emt 0:00:59]} Nac4 {[%emt 0:01:06]} 12. Qe2 {[%emt 0:01:08]} e5 {[%emt 0:00:27]} 13. dxe6 {[%emt 0:04:35]} Bxe6 {[%emt 0:00:09]} 14. Rac1 {[%emt 0:15:57]} Bg4 {[%emt 0:08:54]} 15. h3 {[%emt 0:10:24]} Bxf3 {[%emt 0:00:41]} 16. Bxf3 {[%emt 0:03:50]} Qe7 {[%emt 0:06:15]} 17. b3 {[%emt 0:05:11]} Ne5 {[%emt 0:02:07]} 18. Bg2 {[%emt 0:00:47]} Rad8 {[%emt 0:13:47]} 19. Rfd1 {[%emt 0:04:12]} Rfe8 {[%emt 0:15:55]} 20. Be3 {[%emt 0:08:03]} Rxd1+ {[%emt 0:01:25]} 21. Rxd1 {[%emt 0:01:40]} Ned7 {[%emt 0:02:24]} 22. Qc2 {[%emt 0:04:22]} h5 {[%emt 0:08:41]} 23. f4 {[%emt 0:10:00]} h4 {[%emt 0:06:50]} 24. g4 {[%emt 0:00:12]} Nf8 {[%emt 0:01:04]} 25. e5 {[%emt 0:06:37]} g5 {[%emt 0:00:55]} 26. fxg5 {[%emt 0:04:39]} Qxe5 {[%emt 0:02:47]} 27. Ne4 {[%emt 0:00:51]} Ne6 {[%emt 0:00:21]} 28. Qf2 {[%emt 0:05:29]} Nd5 {[%emt 0:01:19]} 29. Rf1 {[%emt 0:00:18]} Qc7 {[%emt 0:09:11]} 30. Nd6 {[%emt 0:03:32]} Rd8 {[%emt 0:05:55]} 31. Nxf7 {[%emt 0:02:22]} Nxe3 {[%emt 0:02:29]} 32. Nxd8 {[%emt 0:00:17]} Qxd8 {[%emt 0:00:32]} 33. Qf7+ {[%emt 0:01:12]} Kh8 {[%emt 0:00:01]} 34. Qh5+ {[%emt 0:01:05]} Kg8 {[%emt 0:00:02]} 35. Qf7+ {[%emt 0:00:13]} Kh8 {[%emt 0:00:02]} 36. Qh5+ {[%emt 0:01:04]} 1/2-1/2

[Event "49th Rilton Cup 2019-20"]
[Site "Stockholm"]
[Date "2019.12.28"]
[Round "2.2"]
[White "Lindberg, Bengt"]
[Black "Thybo, Jesper Sondergaard"]
[Result "0-1"]
[ECO "B67"]
[WhiteElo "2401"]
[BlackElo "2576"]
[Annotator "ChessBase"]
[PlyCount "62"]
[EventDate "2019.12.27"]
[EventType "swiss"]
[EventCountry "SWE"]
[SourceTitle "playchess.com"]
[Source "ChessBase"]
[SourceQuality "1"]
[TimeControl "40/5400+30:1800+30"]

1. e4 {[%emt 0:00:00]} c5 {[%emt 0:00:00]} 2. Nf3 {[%emt 0:00:00]} d6 {[%emt 0:00:00]} 3. d4 {[%emt 0:00:00]} cxd4 {[%emt 0:00:00]} 4. Nxd4 {[%emt 0:00:10]} Nf6 {[%emt 0:00:00]} 5. Nc3 {[%emt 0:00:16]} Nc6 {[%emt 0:00:00]} 6. Bg5 {[%emt 0:00:22]} e6 {[%emt 0:00:07]} 7. Qd2 {[%emt 0:00:23]} a6 {[%emt 0:00:09]} 8. O-O-O {[%emt 0:00:26]} Bd7 {[%emt 0:00:13]} 9. f3 {[%emt 0:00:31]} Nxd4 {[%emt 0:00:13]} 10. Qxd4 {[%emt 0:00:18]} Be7 {[%emt 0:00:08]} 11. h4 {[%emt 0:02:38]} Qc7 {[%emt 0:00:17]} 12. Kb1 {[%emt 0:04:46]} b5 {[%emt 0:00:22]} 13. Qd2 {[%emt 0:10:56]} b4 {[%emt 0:01:25]} 14. Ne2 {[%emt 0:00:11]} a5 {[%emt 0:00:07]} 15. Bxf6 {[%emt 0:16:50]} gxf6 {[%emt 0:14:31]} 16. Nd4 {[%emt 0:00:12]} Qc5 {[%emt 0:01:00]} 17. f4 {[%emt 0:12:26]} Rg8 {[%emt 0:11:05]} 18. Rh3 {[%emt 0:16:37]} a4 {[%emt 0:05:08]} 19. Re3 {[%emt 0:05:34]} Bd8 {[%emt 0:03:40]} 20. Nf3 {[%emt 0:04:06]} Bc7 {[%emt 0:10:41]} 21. b3 {[%emt 0:07:25]} Ke7 {[%emt 0:04:58]} 22. Rd3 {[%emt 0:08:14]} Ra5 {[%emt 0:07:23]} 23. Rd4 {[%emt 0:02:27]} Rga8 {[%emt 0:02:09]} 24. Bc4 {[%emt 0:00:57]} axb3 {[%emt 0:08:29]} 25. Bxb3 {[%emt 0:00:02]} Rxa2 {[%emt 0:01:57]} 26. Bxa2 {[%emt 0:06:24]} Qa5 {[%emt 0:00:01]} 27. c4 {[%emt 0:00:41]} bxc3 {[%emt 0:00:13]} 28. Qe2 {[%emt 0:00:27]} Rb8+ {[%emt 0:01:39]} 29. Ka1 {[%emt 0:00:29]} Rb2 {[%emt 0:00:22]} 30. Qc4 {[%emt 0:00:22]} Bb5 {[%emt 0:01:34]} 31. Qxc7+ {[%emt 0:00:46]} Qxc7 {[%emt 0:00:06]} 0-1

[Event "49th Rilton Cup 2019-20"]
[Site "Stockholm"]
[Date "2019.12.28"]
[Round "2.4"]
[White "Quesada Vera, Liordis"]
[Black "Urkedal, Frode Olav Olsen"]
[Result "0-1"]
[ECO "C26"]
[WhiteElo "2391"]
[BlackElo "2545"]
[Annotator "ChessBase"]
[PlyCount "56"]
[EventDate "2019.12.27"]
[EventType "swiss"]
[EventCountry "SWE"]
[SourceTitle "playchess.com"]
[Source "ChessBase"]
[SourceQuality "1"]
[TimeControl "40/5400+30:1800+30"]

1. e4 {[%emt 0:02:46]} e5 {[%emt 0:00:00]} 2. Nc3 {[%emt 0:00:08]} Nf6 {[%emt 0:00:00]} 3. g3 {[%emt 0:00:11]} Bc5 {[%emt 0:00:05]} 4. Bg2 {[%emt 0:00:08]} O-O {[%emt 0:02:12]} 5. Nge2 {[%emt 0:00:59]} c6 {[%emt 0:00:10]} 6. O-O {[%emt 0:18:06]} d5 {[%emt 0:00:13]} 7. exd5 {[%emt 0:00:03]} cxd5 {[%emt 0:00:05]} 8. d4 {[%emt 0:00:07]} exd4 {[%emt 0:00:04]} 9. Na4 {[%emt 0:00:19]} Be7 {[%emt 0:04:42]} 10. Nxd4 {[%emt 0:00:49]} Bg4 {[%emt 0:00:06]} 11. f3 {[%emt 0:22:57]} Bd7 {[%emt 0:01:09]} 12. Nc3 {[%emt 0:00:04]} Qb6 {[%emt 0:06:22]} 13. Kh1 {[%emt 0:06:59]} Nc6 {[%emt 0:05:00]} 14. Nce2 {[%emt 0:00:24]} Rfe8 {[%emt 0:05:16]} 15. c3 {[%emt 0:03:29]} Rac8 {[%emt 0:00:53]} 16. g4 {[%emt 0:29:30]} h6 {[%emt 0:03:52]} 17. Nc2 {[%emt 0:03:01]} Bc5 {[%emt 0:01:42]} 18. b3 {[%emt 0:02:32]} Ne5 {[%emt 0:02:26]} 19. Ned4 {[%emt 0:00:55]} Bd6 {[%emt 0:06:34]} 20. Bb2 {[%emt 0:01:52]} Ng6 {[%emt 0:01:14]} 21. Qd2 {[%emt 0:00:33]} Bb8 {[%emt 0:01:15]} 22. Rfe1 {[%emt 0:00:29]} h5 {[%emt 0:01:53]} 23. gxh5 {[%emt 0:02:47]} Nxh5 {[%emt 0:00:39]} 24. Rxe8+ {[%emt 0:00:08]} Rxe8 {[%emt 0:00:05]} 25. Re1 {[%emt 0:00:46]} Rxe1+ {[%emt 0:01:37]} 26. Nxe1 {[%emt 0:00:01]} Qf6 {[%emt 0:01:14]} 27. Qf2 {[%emt 0:01:24]} Ne5 {[%emt 0:02:09]} 28. Kg1 {[%emt 0:01:27]} Ng4 {[%emt 0:00:10]} 0-1

[Event "49th Rilton Cup 2019-20"]
[Site "Stockholm"]
[Date "2019.12.28"]
[Round "2.5"]
[White "Moradiabadi, Elshan"]
[Black "Percivaldi, Martin"]
[Result "1-0"]
[ECO "A28"]
[WhiteElo "2539"]
[BlackElo "2386"]
[Annotator "ChessBase"]
[PlyCount "67"]
[EventDate "2019.12.27"]
[EventType "swiss"]
[EventCountry "SWE"]
[SourceTitle "playchess.com"]
[Source "ChessBase"]
[SourceQuality "1"]
[TimeControl "40/5400+30:1800+30"]

1. c4 {[%emt 0:01:06]} Nf6 {[%emt 0:00:00]} 2. Nc3 {[%emt 0:01:24]} e5 {[%emt 0:00:25]} 3. Nf3 {[%emt 0:00:03]} Nc6 {[%emt 0:00:12]} 4. e3 {[%emt 0:00:05]} Bb4 {[%emt 0:01:44]} 5. Qc2 {[%emt 0:00:27]} Bxc3 {[%emt 0:00:34]} 6. Qxc3 {[%emt 0:00:02]} Qe7 {[%emt 0:00:17]} 7. a3 {[%emt 0:06:36]} d5 {[%emt 0:03:34]} 8. d4 {[%emt 0:00:13]} exd4 {[%emt 0:01:15]} 9. Nxd4 {[%emt 0:00:02]} Nxd4 {[%emt 0:00:23]} 10. Qxd4 {[%emt 0:00:02]} c5 {[%emt 0:00:18]} 11. Qh4 {[%emt 0:00:05]} O-O {[%emt 0:04:21]} 12. cxd5 {[%emt 0:07:47]} Rd8 {[%emt 0:02:12]} 13. Be2 {[%emt 0:05:42]} Rxd5 {[%emt 0:05:31]} 14. f3 {[%emt 0:02:32]} Be6 {[%emt 0:11:32]} 15. e4 {[%emt 0:04:05]} Rd7 {[%emt 0:00:57]} 16. O-O {[%emt 0:03:04]} Nd5 {[%emt 0:14:13]} 17. Qf2 {[%emt 0:22:05]} Nc7 {[%emt 0:02:13]} 18. Be3 {[%emt 0:02:11]} b6 {[%emt 0:00:11]} 19. f4 {[%emt 0:01:01]} f5 {[%emt 0:04:17]} 20. exf5 {[%emt 0:01:32]} Bxf5 {[%emt 0:00:37]} 21. Rfe1 {[%emt 0:00:19]} Qf6 {[%emt 0:03:40]} 22. b4 {[%emt 0:01:41]} Nd5 {[%emt 0:10:43]} 23. bxc5 {[%emt 0:00:20]} Nxe3 {[%emt 0:00:16]} 24. Qxe3 {[%emt 0:00:01]} bxc5 {[%emt 0:01:39]} 25. Qxc5 {[%emt 0:00:51]} Qd4+ {[%emt 0:02:48]} 26. Qxd4 {[%emt 0:00:01]} Rxd4 {[%emt 0:00:11]} 27. Bf3 {[%emt 0:01:59]} Rad8 {[%emt 0:05:07]} 28. Re7 {[%emt 0:01:13]} Rxf4 {[%emt 0:16:45]} 29. Rxa7 {[%emt 0:00:23]} g5 {[%emt 0:01:43]} 30. a4 {[%emt 0:05:29]} g4 {[%emt 0:01:03]} 31. Ra8 {[%emt 0:00:09]} Rfd4 {[%emt 0:01:12]} 32. Rxd8+ {[%emt 0:00:33]} Rxd8 {[%emt 0:00:01]} 33. Bb7 {[%emt 0:01:03]} Rd7 {[%emt 0:05:59]} 34. Bc8 {[%emt 0:01:01]} 1-0

[Event "49th Rilton Cup 2019-20"]
[Site "Stockholm"]
[Date "2019.12.28"]
[Round "2.6"]
[White "Schekachikhin, Maksim"]
[Black "Kulaots, Kaido"]
[Result "1/2-1/2"]
[ECO "A40"]
[WhiteElo "2389"]
[BlackElo "2538"]
[Annotator "ChessBase"]
[PlyCount "84"]
[EventDate "2019.12.27"]
[EventType "swiss"]
[EventCountry "SWE"]
[SourceTitle "playchess.com"]
[Source "ChessBase"]
[SourceQuality "1"]
[TimeControl "40/5400+30:1800+30"]

1. d4 {[%emt 0:00:00]} e6 {[%emt 0:00:42]} 2. c4 {[%emt 0:01:26]} b6 {[%emt 0:00:24]} 3. Nf3 {[%emt 0:01:47]} Bb7 {[%emt 0:00:18]} 4. Nc3 {[%emt 0:00:09]} Nf6 {[%emt 0:01:17]} 5. g3 {[%emt 0:01:18]} Bb4 {[%emt 0:08:09]} 6. Bd2 {[%emt 0:00:32]} O-O {[%emt 0:02:43]} 7. Bg2 {[%emt 0:00:20]} d6 {[%emt 0:02:37]} 8. O-O {[%emt 0:01:40]} Bxc3 {[%emt 0:02:05]} 9. Bxc3 {[%emt 0:00:10]} Be4 {[%emt 0:01:14]} 10. Re1 {[%emt 0:05:16]} Nbd7 {[%emt 0:03:25]} 11. b3 {[%emt 0:06:41]} h6 {[%emt 0:08:26]} 12. Bh3 {[%emt 0:06:24]} Bh7 {[%emt 0:06:59]} 13. Nd2 {[%emt 0:05:03]} d5 {[%emt 0:05:11]} 14. Rc1 {[%emt 0:02:48]} Qe7 {[%emt 0:14:50]} 15. cxd5 {[%emt 0:10:50]} Nxd5 {[%emt 0:01:16]} 16. Bb2 {[%emt 0:03:48]} c5 {[%emt 0:01:21]} 17. Bg2 {[%emt 0:09:08]} Rac8 {[%emt 0:18:56]} 18. Nc4 {[%emt 0:09:30]} N5f6 {[%emt 0:13:02]} 19. e4 {[%emt 0:07:54]} cxd4 {[%emt 0:00:30]} 20. e5 {[%emt 0:00:07]} Nd5 {[%emt 0:00:44]} 21. Qxd4 {[%emt 0:03:57]} Nc5 {[%emt 0:01:10]} 22. Ba3 {[%emt 0:03:23]} Rcd8 {[%emt 0:02:06]} 23. Ne3 {[%emt 0:04:16]} Nxe3 {[%emt 0:00:30]} 24. Qxe3 {[%emt 0:00:05]} Rc8 {[%emt 0:02:51]} 25. Rc3 {[%emt 0:00:32]} Rfd8 {[%emt 0:00:22]} 26. Rec1 {[%emt 0:00:49]} Qd7 {[%emt 0:00:43]} 27. Bxc5 {[%emt 0:02:22]} bxc5 {[%emt 0:00:16]} 28. Bf3 {[%emt 0:03:55]} Bf5 {[%emt 0:00:43]} 29. Rxc5 {[%emt 0:03:04]} Rxc5 {[%emt 0:00:16]} 30. Qxc5 {[%emt 0:00:11]} Bh3 {[%emt 0:00:50]} 31. Qe3 {[%emt 0:01:39]} a5 {[%emt 0:00:47]} 32. Qe1 {[%emt 0:02:06]} Qd2 {[%emt 0:00:33]} 33. Qxd2 {[%emt 0:01:07]} Rxd2 {[%emt 0:00:04]} 34. a4 {[%emt 0:00:27]} Rb2 {[%emt 0:00:51]} 35. Rc8+ {[%emt 0:03:31]} Kh7 {[%emt 0:00:06]} 36. Be4+ {[%emt 0:00:05]} g6 {[%emt 0:00:53]} 37. Bc2 {[%emt 0:00:48]} Kg7 {[%emt 0:00:38]} 38. f3 {[%emt 0:00:28]} h5 {[%emt 0:00:19]} 39. Rc4 {[%emt 0:00:40]} Ra2 {[%emt 0:00:45]} 40. Rc5 {[%emt 0:01:03]} Rb2 {[%emt 0:00:24]} 41. Rc4 {[%emt 0:08:52]} Kh6 {[%emt 0:05:47]} 42. Rc7 {[%emt 0:06:36]} Kg7 {[%emt 0:01:12]} 1/2-1/2

[Event "49th Rilton Cup 2019-20"]
[Site "Stockholm"]
[Date "2019.12.28"]
[Round "2.7"]
[White "Blomqvist, Erik"]
[Black "Soumya, Swaminathan"]
[Result "1-0"]
[ECO "C49"]
[WhiteElo "2537"]
[BlackElo "2384"]
[Annotator "ChessBase"]
[PlyCount "119"]
[EventDate "2019.12.27"]
[EventType "swiss"]
[EventCountry "SWE"]
[SourceTitle "playchess.com"]
[Source "ChessBase"]
[SourceQuality "1"]
[TimeControl "40/5400+30:1800+30"]

1. e4 {[%emt 0:00:00]} e5 {[%emt 0:01:46]} 2. Nf3 {[%emt 0:00:00]} Nc6 {[%emt 0:00:13]} 3. Bb5 {[%emt 0:00:13]} Nf6 {[%emt 0:00:05]} 4. Nc3 {[%emt 0:07:23]} Bb4 {[%emt 0:04:07]} 5. O-O {[%emt 0:00:32]} O-O {[%emt 0:00:26]} 6. d3 {[%emt 0:00:15]} Re8 {[%emt 0:06:13]} 7. Bg5 {[%emt 0:03:32]} a6 {[%emt 0:04:35]} 8. Ba4 {[%emt 0:03:49]} b5 {[%emt 0:12:47]} 9. Bb3 {[%emt 0:00:13]} h6 {[%emt 0:01:58]} 10. Bxf6 {[%emt 0:13:04]} Qxf6 {[%emt 0:00:56]} 11. Nd5 {[%emt 0:00:11]} Qd8 {[%emt 0:00:51]} 12. a4 {[%emt 0:13:46]} Rb8 {[%emt 0:08:45]} 13. axb5 {[%emt 0:01:41]} axb5 {[%emt 0:00:09]} 14. Nxb4 {[%emt 0:15:05]} Nxb4 {[%emt 0:01:42]} 15. d4 {[%emt 0:04:12]} exd4 {[%emt 0:01:34]} 16. Qxd4 {[%emt 0:00:15]} Qe7 {[%emt 0:01:17]} 17. c3 {[%emt 0:04:15]} Nc6 {[%emt 0:04:51]} 18. Qd2 {[%emt 0:00:35]} d6 {[%emt 0:03:07]} 19. Bd5 {[%emt 0:01:10]} Bd7 {[%emt 0:14:21]} 20. b4 {[%emt 0:02:18]} Qf6 {[%emt 0:05:24]} 21. Ra6 {[%emt 0:02:54]} Ne7 {[%emt 0:00:34]} 22. e5 {[%emt 0:02:42]} Qf5 {[%emt 0:00:24]} 23. Bb3 {[%emt 0:01:17]} dxe5 {[%emt 0:11:06]} 24. Re1 {[%emt 0:07:32]} e4 {[%emt 0:10:39]} 25. Nh4 {[%emt 0:03:45]} Qg4 {[%emt 0:00:55]} 26. h3 {[%emt 0:02:55]} Qxh4 {[%emt 0:00:05]} 27. Qxd7 {[%emt 0:00:06]} c6 {[%emt 0:01:02]} 28. g3 {[%emt 0:03:13]} Qf6 {[%emt 0:01:20]} 29. Rxe4 {[%emt 0:00:05]} Rbd8 {[%emt 0:02:34]} 30. Qg4 {[%emt 0:00:20]} Ng6 {[%emt 0:00:40]} 31. Ra7 {[%emt 0:04:35]} Rf8 {[%emt 0:00:04]} 32. Re3 {[%emt 0:02:14]} Ne5 {[%emt 0:00:15]} 33. Qe2 {[%emt 0:00:58]} Nc4 {[%emt 0:00:45]} 34. Bxc4 {[%emt 0:00:16]} bxc4 {[%emt 0:00:01]} 35. Qxc4 {[%emt 0:01:03]} Rd2 {[%emt 0:00:52]} 36. Qf4 {[%emt 0:00:12]} Qxf4 {[%emt 0:01:02]} 37. gxf4 {[%emt 0:00:02]} Rfd8 {[%emt 0:00:34]} 38. Ree7 {[%emt 0:01:25]} R8d6 {[%emt 0:00:28]} 39. Rxf7 {[%emt 0:00:27]} Rg6+ {[%emt 0:00:26]} 40. Kf1 {[%emt 0:00:14]} Rd3 {[%emt 0:00:12]} 41. f5 {[%emt 0:02:10]} Rg5 {[%emt 0:06:39]} 42. f6 {[%emt 0:03:44]} Rf3 {[%emt 0:01:33]} 43. Rxg7+ {[%emt 0:01:07]} Rxg7 {[%emt 0:00:06]} 44. Rxg7+ {[%emt 0:00:15]} Kf8 {[%emt 0:00:01]} 45. Rg3 {[%emt 0:03:38]} Rxf6 {[%emt 0:00:04]} 46. Ke2 {[%emt 0:00:06]} Ke7 {[%emt 0:00:10]} 47. Ke3 {[%emt 0:00:49]} Kd6 {[%emt 0:00:35]} 48. f4 {[%emt 0:00:56]} Kd5 {[%emt 0:01:41]} 49. Rf3 {[%emt 0:01:17]} c5 {[%emt 0:09:57]} 50. bxc5 {[%emt 0:00:55]} Kxc5 {[%emt 0:00:02]} 51. Ke4 {[%emt 0:00:53]} Kd6 {[%emt 0:00:22]} 52. f5 {[%emt 0:00:24]} Ke7 {[%emt 0:00:36]} 53. Ke5 {[%emt 0:02:13]} Rc6 {[%emt 0:01:56]} 54. f6+ {[%emt 0:02:21]} Kf7 {[%emt 0:00:01]} 55. Kd5 {[%emt 0:00:48]} Rc8 {[%emt 0:00:03]} 56. c4 {[%emt 0:00:21]} Rd8+ {[%emt 0:00:08]} 57. Kc6 {[%emt 0:00:35]} Rc8+ {[%emt 0:00:02]} 58. Kb5 {[%emt 0:01:09]} Rb8+ {[%emt 0:00:27]} 59. Ka6 {[%emt 0:00:09]} Rc8 {[%emt 0:00:09]} 60. Rf4 {[%emt 0:00:15]} 1-0

[Event "49th Rilton Cup 2019-20"]
[Site "Stockholm"]
[Date "2019.12.28"]
[Round "2.9"]
[White "Del Rey, Diego"]
[Black "Schoppen, Casper"]
[Result "0-1"]
[ECO "A48"]
[WhiteElo "2374"]
[BlackElo "2507"]
[Annotator "ChessBase"]
[PlyCount "67"]
[EventDate "2019.12.27"]
[EventType "swiss"]
[EventCountry "SWE"]
[SourceTitle "playchess.com"]
[Source "ChessBase"]
[SourceQuality "1"]
[TimeControl "40/5400+30:1800+30"]

1. d4 {[%emt 0:00:00]} Nf6 {[%emt 0:00:00]} 2. Nf3 {[%emt 0:00:00]} g6 {[%emt 0:03:10]} 3. Nc3 {[%emt 0:00:09]} d5 {[%emt 0:00:43]} 4. Bg5 {[%emt 0:00:26]} Bg7 {[%emt 0:01:03]} 5. Bxf6 {[%emt 0:01:57]} exf6 {[%emt 0:01:28]} 6. e3 {[%emt 0:00:48]} c6 {[%emt 0:00:54]} 7. Bd3 {[%emt 0:01:15]} f5 {[%emt 0:04:11]} 8. Ne2 {[%emt 0:00:25]} O-O {[%emt 0:04:35]} 9. O-O {[%emt 0:02:48]} Nd7 {[%emt 0:01:40]} 10. c4 {[%emt 0:01:02]} dxc4 {[%emt 0:00:55]} 11. Bxc4 {[%emt 0:00:07]} c5 {[%emt 0:14:51]} 12. Qb3 {[%emt 0:07:43]} Rb8 {[%emt 0:03:53]} 13. a4 {[%emt 0:07:22]} Qe7 {[%emt 0:08:37]} 14. Rfd1 {[%emt 0:02:29]} Nb6 {[%emt 0:12:58]} 15. Nf4 {[%emt 0:02:53]} Nxc4 {[%emt 0:02:13]} 16. Qxc4 {[%emt 0:00:25]} cxd4 {[%emt 0:00:44]} 17. Nxd4 {[%emt 0:02:02]} Qe4 {[%emt 0:04:51]} 18. a5 {[%emt 0:14:59]} Be5 {[%emt 0:09:05]} 19. Qc5 {[%emt 0:18:08]} b6 {[%emt 0:04:21]} 20. axb6 {[%emt 0:00:42]} axb6 {[%emt 0:00:07]} 21. Qc3 {[%emt 0:07:19]} Bxf4 {[%emt 0:02:45]} 22. exf4 {[%emt 0:00:02]} Bb7 {[%emt 0:01:22]} 23. Qf3 {[%emt 0:02:52]} Qxf3 {[%emt 0:01:15]} 24. Nxf3 {[%emt 0:00:06]} Bxf3 {[%emt 0:00:12]} 25. gxf3 {[%emt 0:00:03]} Rfd8 {[%emt 0:00:10]} 26. Kg2 {[%emt 0:00:34]} Kf8 {[%emt 0:01:07]} 27. Rxd8+ {[%emt 0:08:09]} Rxd8 {[%emt 0:00:13]} 28. Ra6 {[%emt 0:00:03]} Rd6 {[%emt 0:00:22]} 29. Kf1 {[%emt 0:00:39]} Ke7 {[%emt 0:01:05]} 30. Ke2 {[%emt 0:00:06]} Ke6 {[%emt 0:00:53]} 31. Ra7 {[%emt 0:02:07]} Rd4 {[%emt 0:01:04]} 32. Ke3 {[%emt 0:04:04]} Rb4 {[%emt 0:00:32]} 33. Ra2 {[%emt 0:00:04]} Rb3+ {[%emt 0:00:21]} 34. Kd4 {Ke5+} 0-1